fUSD/lending_fUSD_20260128
["ID","MTS","AMOUNT","RATE_DAILY","PERIOD"]
[403853790,1769602244505,-155.0,0.00021918,2]
[403853792,1769602244515,-155.0,0.00021918,2]
[403853794,1769602244527,-155.0,0.00021918,2]
[403853796,1769602244537,-155.0,0.00021918,2]
[403853798,1769602244548,-219.15698301,0.00021918,2]
[403853800,1769602244558,-800.0,0.00021918,4]
[403853802,1769602244567,-800.0,0.00021918,4]
[403853804,1769602244576,-800.0,0.00021918,4]
[403853806,1769602244586,-800.0,0.00021918,4]
[403853808,1769602244595,-800.0,0.00021918,4]
[403853810,1769602244604,-800.0,0.00021918,4]
[403853812,1769602244614,-800.0,0.00021918,4]
[403853814,1769602244623,-800.0,0.00021918,4]
[403853816,1769602244633,-165.0,0.00021918,2]
[403853818,1769602244642,-165.0,0.00021918,2]
[403853820,1769602244652,-168.35235479,0.00021918,2]
[403853822,1769602244663,-500.0,0.00021973,2]
[403853824,1769602244673,-500.80699206,0.00021973,2]
[403853826,1769602244682,-333.38297548,0.00021973,2]
[403853828,1769602244692,-500.36677544,0.00021973,2]
[403853830,1769602244702,-500.30198217,0.00021973,2]
[403853832,1769602244711,-501.28043174,0.00021973,2]
[403853834,1769602244721,-500.92006198,0.00021973,2]
[403853836,1769602244731,-500.0,0.00021973,2]
[403853838,1769602244741,-161.84465629,0.00021973,2]
[403853840,1769602244751,-161.40469099,0.00021973,2]
[403853842,1769602244762,-500.7153794,0.00021973,2]
[403853844,1769602244772,-158.16850071,0.00021973,2]
[403853846,1769602244782,-161.06844262,0.00021973,2]
[403853848,1769602244792,-208.25001781,0.00021973,2]
[403853850,1769602244801,-253.77857241,0.00021973,2]
[403853852,1769602244811,-160.12074571,0.00021973,2]
[403853854,1769602244820,-471.25294658,0.00021973,2]
[403853856,1769602244830,-500.0,0.00021973,2]
[403853858,1769602244843,-309.0940969,0.00021973,2]
[403853860,1769602244854,-500.64953164,0.00021973,2]
[403853863,1769602244864,-284.26160818,0.00021973,2]
[403853865,1769602244873,-500.0,0.00021973,2]
[403853867,1769602244884,-500.19574108,0.00021973,2]
[403853869,1769602244893,-500.83674471,0.00021973,2]
[403853871,1769602244903,-500.0,0.00021973,2]
[403853873,1769602244913,-509.15554245,0.00021973,2]
[403853875,1769602244922,-208.70238568,0.00021973,2]
[403853877,1769602244932,-169.6207379,0.00021973,2]
[403853879,1769602244944,-165.82745165,0.00021973,2]
[403853881,1769602244958,-162.57897641,0.00021973,2]
[403853883,1769602244968,-500.0,0.00021973,2]
[403853885,1769602244978,-501.91802537,0.00021973,2]
[403853887,1769602244988,-500.85858399,0.00021973,2]
[403853889,1769602244998,-500.48796641,0.00021973,2]
[403853891,1769602245007,-500.0,0.00021973,2]
[403853893,1769602245018,-512.07559774,0.00021973,2]
[403853895,1769602245027,-160.05102853,0.00021973,2]
[403853897,1769602245038,-162.0162466,0.00021973,2]
[403853899,1769602245049,-500.13090625,0.00021973,2]
[403853901,1769602245059,-164.6729444,0.00021973,2]
[403853903,1769602245069,-500.29215456,0.00021973,2]
[403853905,1769602245079,-500.0,0.00021973,2]
[403853907,1769602245092,-501.63245988,0.00021973,2]
[403853909,1769602245101,-500.0,0.00021973,2]
[403853912,1769602245112,-501.80780419,0.00021973,2]
[403853914,1769602245121,-500.0,0.00021973,2]
[403853916,1769602245131,-500.0,0.00021973,2]
[403853918,1769602245141,-500.0,0.00021973,2]
[403853919,1769602245150,-70422.45844552,0.00022,4]
[403853921,1769602245159,-162.0,0.00022,14]
[403853924,1769602245170,-612.96,0.00022,7]
[403853925,1769602245180,-1497.6959964,0.00022123,2]
[403853928,1769602245190,-150.0034399,0.00022402,17]
[403853929,1769602245200,-4366.77435165,0.00022479,2]
[403853932,1769602245210,-173.98525455,0.000225,7]
[403853934,1769602245219,-1000.0,0.00022521,2]
[403853936,1769602245230,-1000.0,0.00022521,2]
[403853938,1769602245239,-334.1811475,0.00023043,2]
[403853940,1769602245249,-485.14441319,0.00023068,2]
[403853942,1769602245260,-1500.0,0.00023068,2]
[403853944,1769602245270,-151.0,0.00023108,2]
[403853946,1769602245280,-502.0,0.00023167,6]
[403853948,1769602245290,-8427.58,0.00023288,2]
[403853950,1769602245300,-2000.0,0.000234,2]
[403853952,1769602245311,-2004.13087402,0.00023616,2]
[403853954,1769602245321,-5930.0,0.00023701,2]
[403853956,1769602245332,-6616.523,0.00023701,2]
[403853958,1769602245342,-150.0034399,0.00023808,22]
[403853960,1769602245352,-886.69078901,0.00023851,2]
[403853962,1769602245363,-10567.71171829,0.00023851,2]
[403853964,1769602245373,-6520.91910662,0.000245,2]
[403853966,1769602245383,-1000.0,0.00024658,2]
[403853968,1769602245393,-150.173,0.00024672,2]
[403853970,1769602245404,-150.149,0.00024672,2]
[403853972,1769602245414,-612.96,0.000247,7]
[403853974,1769602245424,-218.387859,0.000248,7]
[403853977,1769602245433,-218.387859,0.000248,7]
[403853979,1769602245444,-218.387859,0.000248,7]
[403853981,1769602245455,-218.387859,0.000248,7]
[403853983,1769602245466,-1349.23952846,0.00024821,2]
[403853985,1769602245477,-151.0,0.00025101,2]
[403853987,1769602245487,-150.0034399,0.00025213,26]
[403853989,1769602245498,-502.45444325,0.00025286,14]
[403853991,1769602245508,-151.0,0.00025504,3]
[403853993,1769602245518,-166.12685918,0.00025504,3]
[403853995,1769602245528,-33735.46695411,0.00026,10]
[403854030,1769602245823,-151.0,0.00026,7]
[403854033,1769602245863,-151.0,0.00026,7]
[403854035,1769602245873,-152.356874,0.00026,7]
[403854037,1769602245882,-151.0,0.00026,7]
[403854039,1769602245892,-239.527994,0.00026,7]
[403854041,1769602245902,-239.527994,0.00026,7]
[403854043,1769602245912,-239.527994,0.00026,7]
[403854045,1769602245922,-239.527994,0.00026,7]
[403854047,1769602245931,-151.0,0.00026,7]
[403854049,1769602245941,-151.0,0.00026,7]
[403854051,1769602245951,-151.0,0.00026,7]
[403854053,1769602245961,-151.0,0.00026,7]
[403854055,1769602245971,-151.0,0.00026,7]
[403854057,1769602245982,-151.0,0.00026,7]
[403854059,1769602245992,-151.0,0.00026,7]
[403854061,1769602246001,-151.0,0.00026,7]
[403854063,1769602246011,-151.0,0.00026,7]
[403854065,1769602246021,-151.0,0.00026,7]
[403854067,1769602246031,-151.0,0.00026,7]
[403854069,1769602246040,-151.0,0.00026,7]
[403854071,1769602246050,-609.283592,0.00026,7]
[403854073,1769602246059,-609.283592,0.00026,7]
[403854075,1769602246068,-609.283592,0.00026,7]
[403854077,1769602246079,-609.283592,0.00026,7]
[403854079,1769602246090,-1996.78111253,0.00026221,2]
[403854081,1769602246103,-4366.77435165,0.00026605,2]
[403854083,1769602246112,-150.0034399,0.00026619,31]
[403854085,1769602246122,-5930.0,0.00026701,2]
[403854087,1769602246132,-6572.0,0.00026701,2]
[403854089,1769602246141,-886.69078901,0.00027059,2]
[403854091,1769602246150,-10567.71171829,0.00027059,2]
[403854093,1769602246160,-151.0,0.00027094,2]
[403854095,1769602246171,-2000.0,0.000271,2]
[403854097,1769602246182,-150.0,0.00027369,2]
[403854098,1769602246192,-343.86,0.0002737,2]
[403854100,1769602246203,-750.0,0.00027397,20]
[403854102,1769602246213,-300.0,0.00027397,2]
[403854104,1769602246223,-158.486834,0.00027397,7]
[403854106,1769602246233,-158.486834,0.00027397,7]
[403854108,1769602246243,-158.486834,0.00027397,7]
[403854110,1769602246253,-158.486834,0.00027397,7]
[403854112,1769602246262,-151.0,0.00027397,7]
[403854114,1769602246272,-939.192566,0.00027397,7]
[403854116,1769602246282,-939.192566,0.00027397,7]
[403854118,1769602246292,-939.192566,0.00027397,7]
[403854121,1769602246302,-155.939796,0.00027397,7]
[403854123,1769602246315,-939.192566,0.00027397,7]
[403854125,1769602246328,-482.101971,0.00027397,7]
[403854127,1769602246338,-482.101971,0.00027397,7]
[403854129,1769602246347,-482.101971,0.00027397,7]
[403854131,1769602246357,-482.101971,0.00027397,7]
[403854133,1769602246367,-252.66824215,0.00027772,2]
[403854135,1769602246376,-612.96,0.000278,7]
[403854137,1769602246386,-5563.35701331,0.00028,2]
[403854139,1769602246396,-150.0034399,0.00028025,35]
[403854141,1769602246406,-502.0,0.00028333,11]
[403854143,1769602246416,-182.74546326,0.00028674,2]
[403854145,1769602246425,-751.64179727,0.00028786,14]
[403854147,1769602246435,-5000.0,0.00029,2]
[403854149,1769602246445,-694.59,0.00029,14]
[403854151,1769602246455,-151.0,0.00029088,2]
[403854153,1769602246466,-500.0,0.00029205,2]
[403854155,1769602246476,-150.0034399,0.0002943,39]
[403854157,1769602246486,-5930.0,0.00029701,2]
[403854159,1769602246496,-5000.0,0.0003,2]
[403854161,1769602246505,-3183.4293973,0.0003,120]
[403854163,1769602246516,-341.63,0.000301,90]
[403854167,1769602246525,-341.63,0.000301,20]
[403854169,1769602246535,-152.0,0.00030205,3]
[403854171,1769602246544,-886.69078901,0.00030268,2]
[403854173,1769602246555,-10567.71171829,0.00030268,2]
[403854175,1769602246564,-612.96,0.000305,7]
[403854177,1769602246574,-4366.77435165,0.00030732,2]
[403854179,1769602246584,-1016.9973,0.00030786,28]
[403854181,1769602246594,-1305.0,0.000308,2]
[403854183,1769602246603,-150.0034399,0.00030836,43]
[403854185,1769602246614,-5000.0,0.00031,2]
[403854187,1769602246624,-11382.96689091,0.00031,2]
[403854189,1769602246634,-151.0,0.00031081,2]
[403854191,1769602246643,-5000.0,0.00032,2]
[403854193,1769602246653,-3769.825,0.00032701,2]
[403854195,1769602246663,-515.79,0.00032849,30]
[403854197,1769602246672,-500.0,0.00032877,7]
[403854199,1769602246684,-500.0,0.00032877,7]
[403854201,1769602246694,-500.0,0.00032877,7]
[403854203,1769602246704,-500.0,0.00032877,7]
[403854205,1769602246714,-500.0,0.00032877,7]
[403854207,1769602246724,-500.0,0.00032877,7]
[403854209,1769602246734,-500.0,0.00032877,7]
[403854211,1769602246744,-500.0,0.00032877,7]
[403854213,1769602246753,-288.39921426,0.00032877,7]
[403854215,1769602246763,-1448.96,0.000329,2]
[403854217,1769602246773,-5000.0,0.00033,2]
[403854219,1769602246783,-152.0,0.00033017,4]
[403854221,1769602246792,-151.0,0.00033074,5]
[403854223,1769602246803,-559.17,0.00033183,2]
[403854225,1769602246812,-343.8,0.00033183,2]
[403854227,1769602246823,-151.7,0.00033183,2]
[403854229,1769602246832,-559.17,0.00033183,2]
[403854231,1769602246842,-178.49,0.00033183,2]
[403854233,1769602246852,-344.32,0.00033183,2]
[403854235,1769602246861,-937.81,0.00033183,2]
[403854237,1769602246871,-937.81,0.00033183,2]
[403854239,1769602246882,-936.87,0.00033183,2]
[403854241,1769602246892,-2831.0,0.00033461,11]
[403854243,1769602246902,-886.69078901,0.00033476,2]
[403854245,1769602246911,-10567.71171829,0.00033476,2]
[403854247,1769602246922,-502.0,0.000335,16]
[403854249,1769602246932,-257.38136555,0.00033535,10]
[403854251,1769602246942,-500.0,0.00033633,30]
[403854253,1769602246953,-500.0,0.00033633,120]
[403854255,1769602246963,-150.00344002,0.00033647,50]
[403854257,1769602246974,-4606.34,0.000337,14]
[403854259,1769602246984,-1717.53,0.000337,14]
[403854261,1769602246994,-5000.0,0.00034,2]
[403854263,1769602247004,-1305.78924631,0.000345,2]
[403854265,1769602247013,-1448.96,0.000345,2]
[403854267,1769602247023,-4366.77435165,0.00034858,2]
[403854269,1769602247032,-5000.0,0.00035,2]
[403854271,1769602247042,-300.0,0.00035,120]
[403854273,1769602247052,-176.93300128,0.00035053,54]
[403854275,1769602247061,-151.0,0.00035067,7]
[403854277,1769602247071,-8427.58,0.00035069,2]
[403854279,1769602247081,-500.0,0.00035616,7]
[403854281,1769602247094,-500.0,0.00035616,7]
[403854283,1769602247106,-500.0,0.00035616,7]
[403854285,1769602247116,-500.0,0.00035616,7]
[403854288,1769602247127,-500.0,0.00035616,7]
[403854289,1769602247139,-500.0,0.00035616,7]
[403854291,1769602247149,-500.0,0.00035616,7]
[403854294,1769602247159,-500.0,0.00035616,7]
[403854295,1769602247172,-500.0,0.00035616,7]
[403854296,1769602247183,-500.0,0.00035616,7]
[403854297,1769602247193,-500.0,0.00035616,7]
[403854298,1769602247206,-500.0,0.00035616,7]
[403854299,1769602247216,-500.0,0.00035616,7]
[403854300,1769602247226,-500.0,0.00035616,7]
[403854301,1769602247236,-500.0,0.00035616,7]
[403854302,1769602247245,-375.18484396,0.00035616,7]
[403854303,1769602247255,-500.0,0.00035616,7]
[403854304,1769602247265,-500.0,0.00035616,7]
[403854305,1769602247274,-500.0,0.00035616,7]
[403854306,1769602247284,-500.0,0.00035616,7]
[403854307,1769602247294,-500.0,0.00035616,7]
[403854308,1769602247304,-500.0,0.00035616,7]
[403854309,1769602247314,-500.0,0.00035616,7]
[403854311,1769602247323,-500.0,0.00035616,7]
[403854313,1769602247333,-969.1,0.00035813,2]
[403854315,1769602247343,-152.0,0.00035828,5]
[403854317,1769602247352,-5000.0,0.00036,2]
[403854319,1769602247362,-1717.53,0.00036,14]
[403854321,1769602247371,-2831.0,0.0003639,11]
[403854323,1769602247381,-176.93300128,0.00036458,58]
[403854325,1769602247390,-4606.34,0.000365,14]
[403854327,1769602247400,-201.902198,0.000365,13]
[403854329,1769602247409,-886.69078901,0.00036684,2]
[403854331,1769602247418,-10567.71171829,0.00036684,2]
[403854333,1769602247428,-578.82,0.000367,30]
[403854335,1769602247437,-1448.96,0.000367,2]
[403854337,1769602247447,-125357.19946879,0.00036888,60]
[403854413,1769602248182,-37822.29418217,0.00036888,60]
[403854415,1769602248192,-5000.0,0.00037,2]
[403854417,1769602248203,-2242.0,0.00037,30]
[403854419,1769602248213,-151.0,0.00037061,30]
[403854421,1769602248222,-1118.08,0.00037452,2]
[403854423,1769602248231,-363.41,0.00037452,2]
[403854425,1769602248241,-2494.7,0.00037452,2]
[403854427,1769602248251,-348.37,0.00037452,2]
[403854430,1769602248261,-1500.0,0.00037482,14]
[403854431,1769602248270,-1717.53,0.000375,14]
[403854434,1769602248280,-558.94,0.00037644,2]
[403854435,1769602248290,-172.23,0.00037644,2]
[403854437,1769602248300,-1624.6,0.00037644,2]
[403854439,1769602248309,-150.0,0.00037644,2]
[403854441,1769602248319,-303.82,0.00037644,2]
[403854443,1769602248328,-468.96,0.00037644,2]
[403854445,1769602248338,-344.5,0.00037644,2]
[403854447,1769602248347,-468.96,0.00037644,2]
[403854449,1769602248357,-937.28,0.00037644,2]
[403854451,1769602248366,-1128.9,0.00037644,2]
[403854453,1769602248376,-500.0,0.00037756,14]
[403854455,1769602248387,-500.0,0.00037756,14]
[403854457,1769602248397,-1190.85,0.000378,13]
[403854459,1769602248408,-176.93300128,0.00037864,62]
[403854461,1769602248417,-1010.53040663,0.00037882,2]
[403854463,1769602248427,-3688.08895762,0.000379,14]
[403854525,1769602249020,-1204.0,0.00024078,2]
[403854527,1769602249029,-174.02655139,0.00025001,2]
[403854529,1769602249038,-918.25104238,0.000379,14]
[403854531,1769602249047,-5000.0,0.00038,2]
[403854533,1769602249056,-1448.96,0.00038,2]
[403854535,1769602249065,-2000.0,0.00038,30]
[403854537,1769602249074,-468.96,0.00038121,2]
[403854539,1769602249083,-172.27,0.00038121,2]
[403854541,1769602249096,-172.27,0.00038121,2]
[403854543,1769602249106,-172.27,0.00038121,2]
[403854545,1769602249115,-172.31,0.00038121,2]
[403854547,1769602249126,-172.27,0.00038121,2]
[403854549,1769602249136,-468.85,0.00038121,2]
[403854550,1769602249145,-172.27,0.00038121,2]
[403854551,1769602249154,-468.85,0.00038121,2]
[403854552,1769602249164,-468.85,0.00038121,2]
[403854553,1769602249174,-468.85,0.00038121,2]
[403854554,1769602249183,-468.85,0.00038121,2]
[403854555,1769602249193,-559.17,0.00038142,2]
[403854556,1769602249203,-2021.6045892,0.00038142,2]
[403854558,1769602249260,-221.5454108,0.00038142,2]
[403854560,1769602249271,-947.18,0.00038142,2]
[403854561,1769602249283,-4008.884,0.00038245,51]
[403854563,1769602249293,-284.512,0.00038245,51]
[403854565,1769602249302,-1500.0,0.00038304,14]
[403854567,1769602249312,-151.0,0.00038356,30]
[403854569,1769602249321,-151.0,0.00038356,120]
[403854571,1769602249330,-239.527994,0.00038356,120]
[403854572,1769602249339,-239.527994,0.00038356,120]
[403854573,1769602249349,-239.527994,0.00038356,120]
[403854574,1769602249359,-239.527994,0.00038356,120]
[403854575,1769602249368,-158.486834,0.00038356,120]
[403854577,1769602249378,-158.486834,0.00038356,120]
[403854579,1769602249388,-158.486834,0.00038356,120]
[403854581,1769602249397,-158.486834,0.00038356,120]
[403854583,1769602249407,-151.0,0.00038356,120]
[403854585,1769602249416,-151.0,0.00038356,120]
[403854587,1769602249425,-151.361254,0.00038356,30]
[403854589,1769602249434,-151.0,0.00038356,120]
[403854591,1769602249443,-151.0,0.00038356,120]
[403854592,1769602249453,-151.0,0.00038356,120]
[403854593,1769602249462,-151.0,0.00038356,120]
[403854594,1769602249472,-939.192566,0.00038356,120]
[403854596,1769602249481,-939.192566,0.00038356,120]
[403854597,1769602249490,-939.192566,0.00038356,120]
[403854598,1769602249500,-939.192566,0.00038356,120]
[403854599,1769602249509,-218.387859,0.00038356,120]
[403854600,1769602249518,-218.387859,0.00038356,120]
[403854601,1769602249528,-218.387859,0.00038356,120]
[403854602,1769602249537,-218.387859,0.00038356,120]
[403854604,1769602249546,-151.0,0.00038356,120]
[403854606,1769602249556,-151.0,0.00038356,120]
[403854608,1769602249565,-215.50229,0.00038356,120]
[403854610,1769602249574,-482.101971,0.00038356,120]
[403854612,1769602249583,-482.101971,0.00038356,120]
[403854614,1769602249593,-482.101971,0.00038356,120]
[403854616,1769602249601,-482.101971,0.00038356,120]
[403854618,1769602249610,-151.0,0.00038356,120]
[403854619,1769602249620,-151.0,0.00038356,120]
[403854621,1769602249629,-219.034413,0.00038356,120]
[403854623,1769602249639,-609.283592,0.00038356,28]
[403854624,1769602249648,-609.283592,0.00038356,28]
[403854625,1769602249658,-609.283592,0.00038356,28]
[403854626,1769602249667,-609.283592,0.00038356,28]
[403854627,1769602249676,-151.0,0.00038356,120]
[403854628,1769602249685,-151.0,0.00038356,60]
[403854629,1769602249694,-151.0,0.00038356,120]
[403854630,1769602249704,-151.0,0.00038356,60]
[403854631,1769602249713,-151.0,0.00038356,120]
[403854632,1769602249723,-151.0,0.00038356,120]
[403854633,1769602249732,-151.0,0.00038356,60]
[403854634,1769602249742,-151.0,0.00038356,60]
[403854635,1769602249752,-151.0,0.00038356,120]
[403854636,1769602249761,-151.0,0.00038356,120]
[403854637,1769602249770,-151.0,0.00038356,120]
[403854638,1769602249780,-151.0,0.00038356,120]
[403854639,1769602249789,-151.0,0.00038356,120]
[403854640,1769602249799,-151.0,0.00038356,120]
[403854641,1769602249808,-151.0,0.00038356,120]
[403854642,1769602249818,-151.0,0.00038356,120]
[403854643,1769602249828,-151.0,0.00038356,120]
[403854644,1769602249837,-188.760202,0.00038356,120]
[403854645,1769602249848,-151.0,0.00038356,120]
[403854646,1769602249857,-151.0,0.00038356,120]
[403854647,1769602249867,-151.0,0.00038356,120]
[403854648,1769602249876,-151.0,0.00038356,120]
[403854649,1769602249887,-151.0,0.00038356,120]
[403854650,1769602249896,-269.361931,0.00038356,120]
[403854651,1769602249906,-151.0,0.00038356,120]
[403854652,1769602249915,-151.0,0.00038356,120]
[403854653,1769602249924,-151.0,0.00038356,120]
[403854654,1769602249933,-268.660313,0.00038356,120]
[403854655,1769602249942,-285.808745,0.00038356,120]
[403854656,1769602249952,-151.0,0.00038356,120]
[403854657,1769602249963,-157.034272,0.00038356,120]
[403854658,1769602249972,-151.0,0.00038356,120]
[403854659,1769602249981,-247.665553,0.00038356,120]
[403854660,1769602249991,-151.0,0.00038356,120]
[403854661,1769602250001,-151.0,0.00038356,120]
[403854662,1769602250010,-151.0,0.00038356,120]
[403854663,1769602250019,-151.0,0.00038356,120]
[403854664,1769602250029,-151.0,0.00038356,120]
[403854665,1769602250038,-151.0,0.00038356,120]
[403854666,1769602250047,-151.0,0.00038356,120]
[403854667,1769602250057,-159.628702,0.00038356,120]
[403854668,1769602250066,-151.0,0.00038356,120]
[403854669,1769602250075,-151.0,0.00038356,120]
[403854670,1769602250084,-151.0,0.00038356,120]
[403854671,1769602250095,-151.0,0.00038356,120]
[403854672,1769602250108,-151.0,0.00038356,120]
[403854673,1769602250117,-151.0,0.00038356,120]
[403854674,1769602250128,-151.0,0.00038356,120]
[403854675,1769602250139,-151.0,0.00038356,120]
[403854676,1769602250148,-151.0,0.00038356,120]
[403854677,1769602250157,-213.172006,0.00038356,120]
[403854678,1769602250167,-151.0,0.00038356,120]
[403854679,1769602250179,-151.0,0.00038356,120]
[403854680,1769602250188,-201.774286,0.00038356,120]
[403854681,1769602250197,-151.0,0.00038356,120]
[403854682,1769602250206,-151.0,0.00038356,120]
[403854683,1769602250216,-151.0,0.00038356,20]
[403854684,1769602250225,-151.0,0.00038356,20]
[403854685,1769602250234,-151.0,0.00038356,120]
[403854686,1769602250243,-151.0,0.00038356,120]
[403854687,1769602250253,-151.0,0.00038356,120]
[403854688,1769602250262,-224.245296,0.00038356,120]
[403854689,1769602250271,-151.0,0.00038356,120]
[403854690,1769602250280,-155.990226,0.00038356,120]
[403854691,1769602250289,-151.0,0.00038356,10]
[403854692,1769602250298,-151.0,0.00038356,10]
[403854693,1769602250307,-151.0,0.00038356,120]
[403854694,1769602250316,-151.0,0.00038356,120]
[403854695,1769602250325,-242.940143,0.00038356,120]
[403854696,1769602250334,-151.0,0.00038356,120]
[403854697,1769602250343,-151.0,0.00038356,120]
[403854698,1769602250353,-224.382498,0.00038356,120]
[403854699,1769602250362,-151.0,0.00038356,120]
[403854700,1769602250372,-151.0,0.00038356,120]
[403854701,1769602250381,-151.0,0.00038356,120]
[403854702,1769602250391,-151.0,0.00038356,120]
[403854703,1769602250400,-151.0,0.00038356,120]
[403854704,1769602250410,-151.0,0.00038356,120]
[403854705,1769602250419,-151.0,0.00038356,120]
[403854706,1769602250428,-151.0,0.00038356,120]
[403854707,1769602250439,-151.0,0.00038356,90]
[403854708,1769602250451,-151.0,0.00038356,90]
[403854709,1769602250461,-174.271238,0.00038356,90]
[403854710,1769602250470,-151.0,0.00038356,120]
[403854711,1769602250482,-151.0,0.00038356,120]
[403854712,1769602250492,-151.0,0.00038356,120]
[403854713,1769602250502,-151.0,0.00038356,120]
[403854714,1769602250511,-151.0,0.00038356,120]
[403854715,1769602250520,-151.0,0.00038356,120]
[403854716,1769602250530,-151.0,0.00038356,120]
[403854717,1769602250539,-163.635738,0.00038356,120]
[403854718,1769602250548,-167.928509,0.00038356,120]
[403854719,1769602250557,-151.0,0.00038356,120]
[403854720,1769602250566,-151.0,0.00038356,120]
[403854721,1769602250575,-160.271052,0.00038356,120]
[403854722,1769602250584,-385.967359,0.00038356,120]
[403854723,1769602250594,-385.967359,0.00038356,120]
[403854724,1769602250603,-385.967359,0.00038356,120]
[403854725,1769602250612,-385.967359,0.00038356,120]
[403854726,1769602250621,-151.0,0.00038356,120]
[403854727,1769602250630,-385.967359,0.00038356,120]
[403854728,1769602250639,-151.0,0.00038356,120]
[403854729,1769602250648,-385.967359,0.00038356,120]
[403854730,1769602250657,-151.0,0.00038356,120]
[403854731,1769602250666,-179.817636,0.00038356,120]
[403854732,1769602250675,-385.967359,0.00038356,120]
[403854733,1769602250684,-385.967359,0.00038356,120]
[403854734,1769602250693,-151.0,0.00038356,120]
[403854735,1769602250703,-151.07382,0.00038356,120]
[403854736,1769602250712,-151.0,0.00038356,30]
[403854737,1769602250723,-151.0,0.00038356,30]
[403854738,1769602250732,-151.0,0.00038356,30]
[403854739,1769602250741,-151.0,0.00038356,30]
[403854740,1769602250750,-151.0,0.00038356,120]
[403854741,1769602250759,-151.0,0.00038356,120]
[403854742,1769602250768,-151.0,0.00038356,120]
[403854743,1769602250777,-151.0,0.00038356,120]
[403854744,1769602250786,-151.0,0.00038356,120]
[403854745,1769602250795,-151.0,0.00038356,120]
[403854746,1769602250804,-151.0,0.00038356,120]
[403854747,1769602250813,-151.0,0.00038356,120]
[403854748,1769602250822,-151.0,0.00038356,120]
[403854749,1769602250832,-151.0,0.00038356,120]
[403854750,1769602250841,-151.0,0.00038356,120]
[403854751,1769602250850,-151.0,0.00038356,120]
[403854752,1769602250859,-180.147655,0.00038356,120]
[403854753,1769602250868,-180.147655,0.00038356,120]
[403854754,1769602250877,-180.147655,0.00038356,120]
[403854755,1769602250886,-180.147655,0.00038356,120]
[403854756,1769602250894,-180.147655,0.00038356,120]
[403854757,1769602250903,-180.147655,0.00038356,120]
[403854758,1769602250913,-180.147655,0.00038356,120]
[403854759,1769602250922,-180.147655,0.00038356,120]
[403854760,1769602250931,-151.0,0.00038356,120]
[403854761,1769602250940,-151.0,0.00038356,120]
[403854762,1769602250948,-182.725996,0.00038356,120]
[403854763,1769602250958,-182.725996,0.00038356,120]
[403854764,1769602250967,-151.0,0.00038356,120]
[403854765,1769602250976,-153.225987,0.00038356,120]
[403854766,1769602250986,-153.225987,0.00038356,120]
[403854767,1769602250995,-182.725996,0.00038356,120]
[403854768,1769602251004,-182.725996,0.00038356,120]
[403854769,1769602251013,-153.225987,0.00038356,120]
[403854770,1769602251022,-153.225987,0.00038356,120]
[403854771,1769602251030,-182.725996,0.00038356,120]
[403854772,1769602251039,-182.725996,0.00038356,120]
[403854773,1769602251048,-153.225987,0.00038356,120]
[403854774,1769602251058,-151.0,0.00038356,120]